bitfinex/quotes_ETHUSD_20251124
["timestamp","ask_amount","ask_price","bid_price","bid_amount"]
[1764010272349,4.63858077,2959.7,2959.6,0.001]
[1764010272546,0.002,2960.0,2959.6,0.001]
[1764010272751,0.219,2959.9,2959.6,0.001]
[1764010272981,0.53425002,2959.9,2959.6,0.001]
[1764010273581,4.63907103,2959.9,2959.6,0.001]
[1764010273884,0.4641071,2959.8,2959.6,0.001]
[1764010274389,3.59749683,2959.9,2959.6,0.001]
[1764010274583,3.59749683,2959.9,2959.6,0.4718]
[1764010274785,3.59749683,2959.9,2959.6,0.001]
[1764010275457,0.31544265,2959.8,2959.6,0.001]
[1764010275659,1.04478628,2959.8,2959.6,0.001]
[1764010275854,0.45234804,2959.7,2959.6,0.001]
[1764010276086,1.17908247,2959.7,2959.6,0.001]
[1764010276259,1.04218247,2959.7,2959.6,0.001]
[1764010277486,4.42090328,2959.7,2959.6,0.001]
[1764010277688,1.04218247,2959.7,2959.6,0.9335]
[1764010277991,3.38038324,2960.0,2959.6,0.4627]
[1764010278190,1.60005003,2959.9,2959.6,0.001]
[1764010278493,0.31569376,2959.8,2959.6,0.001]
[1764010279690,4.42174972,2959.8,2959.6,0.001]
[1764010279852,0.31569376,2959.7,2959.6,0.001]
[1764010281689,0.221,2960.0,2959.6,0.4716]
[1764010281888,3.59939401,2960.0,2959.6,0.4716]
[1764010282188,1.04357304,2959.9,2959.6,0.001]
[1764010282487,0.31587345,2959.8,2959.6,0.001]
[1764010283591,3.69453017,2959.8,2959.6,0.001]
[1764010283791,3.37865672,2959.8,2959.6,0.001]
[1764010284086,0.1369,2959.7,2959.6,0.001]
[1764010284387,1.87001509,2959.7,2959.6,0.001]
[1764010284775,4.64637609,2959.7,2959.6,0.001]
[1764010285199,4.78327609,2959.7,2959.6,0.001]
[1764010285407,8.1619969,2959.7,2959.6,0.001]
[1764010285908,9.1226549,2959.7,2959.6,0.001]
[1764010286271,7.5706809,2959.7,2959.6,0.001]
[1764010286496,7.3608869,2959.7,2959.6,0.001]
[1764010286811,7.7795649,2959.7,2959.6,0.001]
[1764010287304,11.9977829,2959.7,2959.6,0.001]
[1764010287515,11.3069829,2959.7,2959.6,0.001]
[1764010287677,5.2487359,2959.7,2959.6,0.001]
[1764010288971,5.24847642,2959.7,2959.6,0.001]
[1764010289209,5.11157642,2959.7,2959.6,0.001]
[1764010289775,5.24847642,2959.7,2959.6,0.001]
[1764010290708,3.59940379,2960.0,2959.6,0.9548]
[1764010290709,0.002,2960.0,2959.6,0.9548]
[1764010291011,3.38043098,2960.0,2959.7,0.4706]
[1764010291211,3.38043098,2960.0,2959.7,0.9538]
[1764010292009,3.38043098,2960.0,2959.6,0.001]
[1764010292010,0.3157078,2959.9,2959.6,0.001]
[1764010292394,0.3157078,2959.9,2959.7,0.4832]
[1764010292575,0.3177078,2960.0,2959.7,0.4832]
[1764010292779,0.3177078,2960.0,2959.8,0.4706]
[1764010293672,0.002,2960.0,2959.9,0.4706]
[1764010294101,6.89565674,2960.0,2959.6,0.001]
[1764010294303,0.31594181,2959.9,2959.6,0.001]
[1764010294503,0.002,2960.0,2959.6,0.001]
[1764010294706,3.38038159,2960.0,2959.6,0.4842]
[1764010295611,0.002,2960.0,2959.9,0.4706]
[1764010296295,0.002,2960.0,2959.9,0.9538]
[1764010296682,0.002,2960.0,2959.9,5.49112714]
[1764010297625,0.002,2960.0,2959.6,0.001]
[1764010297812,0.002,2960.0,2959.6,0.4842]
[1764010298125,0.002,2960.0,2959.6,0.001]
[1764010298626,0.002,2960.0,2959.6,0.4842]
[1764010298833,0.002,2960.0,2959.6,0.001]
[1764010299016,0.0869,2959.9,2959.6,0.001]
[1764010299330,0.218,2959.8,2959.6,0.001]
[1764010299496,3.37872081,2959.7,2959.6,0.001]
[1764010299693,1.05407578,2959.7,2959.6,0.001]
[1764010299893,0.316236,2959.7,2959.6,0.4716]
[1764010300128,0.1369,2959.7,2959.6,0.001]
[1764010300333,0.316236,2959.7,2959.6,0.001]
[1764010300529,1.04504842,2959.7,2959.6,0.001]
[1764010300731,1.18194842,2959.7,2959.6,0.001]
[1764010301107,1.99766991,2959.7,2959.6,0.001]
[1764010301307,4.47761891,2959.7,2959.6,0.001]
[1764010301538,5.23949072,2959.7,2959.6,0.001]
[1764010302725,1.86076991,2959.7,2959.6,0.001]
[1764010303126,5.23949072,2959.7,2959.6,0.001]
[1764010303341,1.04504842,2959.7,2959.6,0.4716]
[1764010303550,0.316236,2959.7,2959.6,0.9548]
[1764010303898,0.218,2959.8,2959.6,0.9548]
[1764010304012,0.218,2959.8,2959.6,0.001]
[1764010304213,0.534236,2959.8,2959.6,0.001]
[1764010304445,0.316236,2959.7,2959.6,0.001]
[1764010304642,1.26312159,2959.8,2959.6,0.001]
[1764010304843,0.002,2960.0,2959.7,0.9538]
[1764010305051,0.31633145,2959.9,2959.8,0.4706]
[1764010305434,0.31633145,2959.9,2959.6,0.001]
[1764010305633,0.31633145,2959.9,2959.6,0.4842]
[1764010305634,4.42372103,2959.9,2959.6,0.4842]
[1764010305815,0.31633145,2959.8,2959.6,0.4842]
[1764010306160,0.31833145,2960.0,2959.9,0.4706]
[1764010306454,0.002,2960.0,2959.9,0.9538]
[1764010308133,0.31833145,2960.0,2959.9,0.9538]
[1764010308330,0.002,2960.0,2959.9,0.9538]
[1764010309266,0.002,2960.0,2959.9,0.94594]
[1764010310428,0.002,2960.0,2959.9,4.32443251]
[1764010310630,0.002,2960.0,2959.9,0.94594]
[1764010310860,0.002,2960.0,2959.9,0.46274]
[1764010311030,0.002,2960.0,2959.9,0.001]
[1764010311232,0.002,2960.0,2959.9,0.4996]
[1764010311530,0.002,2960.0,2959.9,0.9622]
[1764010311957,0.002,2960.0,2959.9,4.34069251]
[1764010312162,0.002,2960.0,2959.9,0.9622]
[1764010312346,0.002,2960.0,2959.9,4.34069251]
[1764010314338,0.002,2960.0,2959.9,5.11262162]
[1764010314948,0.002,2960.0,2959.9,5.10262162]
[1764010315133,0.002,2960.0,2959.9,4.33069251]
[1764010315754,0.002,2960.0,2959.9,0.4896]
[1764010315961,0.002,2960.0,2959.9,0.4986]
[1764010317635,0.002,2960.0,2959.7,3.84130781]
[1764010317636,0.002,2960.0,2959.7,0.4626]
[1764010317840,0.002,2960.0,2959.6,0.001]
[1764010318035,0.002,2960.0,2959.7,3.37870292]
[1764010318264,0.002,2960.0,2959.6,0.4636]
[1764010318460,0.002,2960.0,2959.6,0.001]
[1764010318656,0.67777388,2960.0,2959.6,3.37982122]
[1764010318886,0.67777388,2960.0,2959.6,0.001]
[1764010319251,0.1038,2959.9,2959.6,0.001]
[1764010319572,0.1538,2959.7,2959.6,0.001]
[1764010319746,4.25811492,2959.7,2959.6,0.001]
[1764010319947,29.62596583,2959.7,2959.6,0.001]
[1764010320169,23.36081135,2959.7,2959.6,0.001]
[1764010320384,10.52074076,2959.6,2959.5,0.001]
[1764010320674,13.30463934,2959.6,2959.5,0.001]
[1764010320982,21.0508463,2959.6,2959.5,0.001]
[1764010321187,20.4539783,2959.6,2959.5,0.001]
[1764010321350,19.3313953,2959.6,2959.5,0.001]
[1764010321671,0.72559411,2959.4,2959.3,0.001]
[1764010321876,5.91420763,2959.4,2959.3,0.001]
[1764010322042,30.63001163,2959.4,2959.3,0.001]
[1764010322241,31.84285322,2959.4,2959.3,0.001]
[1764010322440,31.35366522,2959.4,2959.3,0.001]
[1764010322649,25.87656722,2959.4,2959.3,0.001]
[1764010322999,26.00050322,2959.4,2959.3,0.001]
[1764010323163,25.43675222,2959.4,2959.3,0.001]
[1764010323364,23.21987922,2959.4,2959.3,0.001]
[1764010323757,10.87582898,2959.4,2959.3,0.001]
[1764010323958,13.02014798,2959.4,2959.3,0.001]
[1764010324273,13.92860154,2959.4,2959.3,0.001]
[1764010324477,10.17454354,2959.4,2959.3,0.001]
[1764010325092,12.71433654,2959.4,2959.3,0.001]
[1764010325783,11.15286354,2959.4,2959.3,0.001]
[1764010325987,6.21727743,2959.4,2959.3,0.001]
[1764010326166,5.30882387,2959.4,2959.3,0.001]
[1764010326357,6.03441798,2959.4,2959.3,0.001]
[1764010326886,4.63770215,2959.4,2959.3,0.001]
[1764010327093,0.31604472,2959.4,2959.3,0.9622]
[1764010327391,0.217,2959.5,2959.3,0.9622]
[1764010327558,0.217,2959.5,2959.3,0.001]
[1764010328688,0.217,2959.5,2959.4,0.4986]
[1764010329061,0.217,2959.5,2959.4,0.9612]
[1764010330494,0.31516935,2959.8,2959.4,0.9612]
[1764010330665,0.217,2959.7,2959.4,0.4986]
[1764010331057,0.217,2959.7,2959.4,0.9612]
[1764010331495,0.217,2959.7,2959.6,0.4986]
[1764010331684,2.078087,2959.6,2959.3,0.001]
[1764010331863,0.31516091,2959.5,2959.3,0.001]
[1764010332063,3.37906332,2959.4,2959.3,0.001]
[1764010332582,6.11280066,2959.4,2959.3,0.001]
[1764010332781,7.75765159,2959.4,2959.3,0.001]
[1764010332986,7.91145159,2959.4,2959.3,0.001]
[1764010333186,3.37883497,2959.6,2959.3,0.4996]
[1764010333357,0.31519068,2959.5,2959.3,0.4996]
[1764010334296,0.217,2959.4,2959.3,0.001]
[1764010335572,3.782366,2959.4,2959.3,0.001]
[1764010335797,5.32526222,2959.4,2959.3,0.001]
[1764010336164,8.70432554,2959.4,2959.3,0.001]
[1764010337784,19.03971298,2959.4,2959.3,0.001]
[1764010337996,17.74030709,2959.4,2959.3,0.001]
[1764010338396,14.86424409,2959.4,2959.3,0.001]
[1764010338592,10.57882198,2959.4,2959.3,0.001]
[1764010338899,9.18168398,2959.4,2959.3,0.001]
[1764010339099,8.88318398,2959.4,2959.3,0.001]
[1764010339801,6.59071609,2959.4,2959.3,0.001]
[1764010340590,8.72606709,2959.4,2959.3,0.001]
[1764010340781,11.12927909,2959.4,2959.3,0.001]
[1764010340983,11.28307909,2959.4,2959.3,0.001]
[1764010341485,12.19153265,2959.4,2959.3,0.001]
[1764010341888,23.11752665,2959.4,2959.3,0.001]
[1764010342308,12.06777965,2959.4,2959.3,0.001]
[1764010342606,6.59071609,2959.4,2959.3,0.001]
[1764010344003,0.72559411,2959.3,2958.7,0.2167]
[1764010344202,2.11102176,2959.2,2958.7,0.2167]
[1764010344504,3.3795201,2959.0,2958.7,0.2167]
[1764010344711,1.07591235,2959.4,2959.1,0.6517]
[1764010344918,0.002,2959.4,2959.3,0.462]
[1764010345078,3.59806332,2959.4,2959.3,0.462]
[1764010345412,3.91364789,2959.4,2959.3,0.462]
[1764010346508,0.53458457,2959.4,2959.3,0.462]
[1764010346687,0.53458457,2959.4,2959.3,0.9257]
[1764010347107,3.91364789,2959.4,2959.3,0.9257]
[1764010347313,0.53458457,2959.4,2959.3,0.9257]
[1764010347676,0.31758457,2959.4,2959.3,4.3048775]
[1764010347882,0.002,2959.4,2959.3,5.09226351]
[1764010351027,0.002,2959.4,2959.3,0.9257]
[1764010352177,0.002,2959.4,2959.3,4.3048775]
[1764010352577,0.002,2959.4,2959.3,0.9257]
[1764010353228,0.002,2959.4,2959.3,4.3048775]
[1764010353434,0.002,2959.4,2959.3,0.9257]
[1764010353990,0.002,2959.4,2959.3,4.3048775]
[1764010354231,0.002,2959.4,2959.3,1.37515775]
[1764010354451,0.002,2959.4,2959.3,0.462]
[1764010354726,0.002,2959.4,2958.9,0.4637]
[1764010354928,3.38106332,2959.4,2958.9,0.4637]
[1764010355131,0.31558457,2959.3,2958.9,0.4637]
[1764010355335,0.53258457,2959.2,2958.6,0.4637]
[1764010355492,0.31558457,2959.1,2958.6,0.4637]
[1764010355699,0.31558457,2959.0,2958.3,0.4637]
[1764010355940,0.31558457,2958.9,2958.3,0.4637]
[1764010356097,0.217,2958.8,2958.3,0.4637]
[1764010356701,0.53258457,2958.8,2958.3,0.4637]
[1764010357126,3.37986277,2958.7,2958.3,0.4637]
[1764010357309,0.31623392,2958.6,2958.4,0.4637]
[1764010358219,0.31623392,2958.6,2958.1,0.4637]
[1764010359214,0.31623392,2958.6,2958.1,3.84419505]
[1764010359415,3.69624702,2958.6,2958.1,0.4637]
[1764010359637,0.73961015,2958.7,2958.0,3.56505928]
[1764010359837,0.31619232,2958.6,2958.2,0.4637]
[1764010360146,0.44357403,2958.5,2958.2,0.4637]
[1764010360359,0.31619232,2958.4,2958.2,0.4637]
[1764010360961,0.31619232,2958.4,2958.3,0.001]
[1764010361134,3.91339783,2958.4,2958.3,0.001]
[1764010361339,0.53319232,2958.4,2958.3,0.463]
[1764010361539,0.53319232,2958.4,2958.3,0.9267]
[1764010362162,0.217,2958.4,2958.3,0.9267]
[1764010362363,0.53319232,2958.4,2958.3,0.9267]
[1764010362862,0.53319232,2958.4,2958.3,0.463]
[1764010362863,3.91339783,2958.4,2958.3,0.463]
[1764010363048,4.64273555,2958.4,2958.3,0.463]
[1764010363434,4.64273555,2958.4,2958.3,0.001]
[1764010363831,1.26253004,2958.4,2958.3,0.001]
[1764010364031,0.53319232,2958.4,2958.3,0.463]
[1764010364227,0.50783736,2958.4,2958.3,0.463]
[1764010364432,0.19164504,2958.4,2958.3,0.9267]
[1764010364960,0.31603417,2958.6,2958.3,0.9267]
[1764010365267,0.217,2959.1,2958.4,0.4637]
[1764010365470,0.31600982,2959.1,2958.5,6.76018252]
[1764010365767,0.31600982,2959.1,2959.0,0.462]
[1764010365938,0.002,2959.4,2959.0,0.462]
[1764010366261,0.002,2959.4,2959.3,0.6517]
[1764010366678,10.28689427,2959.4,2957.9,0.1921]
[1764010366830,0.004,2959.2,2958.4,0.4637]
[1764010367034,0.53300982,2959.1,2958.4,0.4637]
[1764010367267,0.31600982,2959.0,2958.4,0.4637]
[1764010367474,3.37963432,2958.9,2958.4,3.84390508]
[1764010367785,0.31600982,2958.8,2958.4,3.84385138]
[1764010367989,0.31596959,2959.0,2958.5,0.4675]
[1764010368192,0.217,2959.1,2959.0,0.4917]
[1764010368693,0.217,2959.1,2959.0,0.9592]
[1764010369186,3.69701228,2959.4,2959.0,0.9592]
[1764010369187,0.31594088,2959.3,2959.0,0.9592]
[1764010369391,0.002,2959.4,2959.1,0.6661]
[1764010369587,0.002,2959.4,2958.3,0.001]
[1764010369588,0.46617138,2959.4,2958.3,0.001]
[1764010369789,3.83058488,2959.3,2958.5,0.4936]
[1764010369994,0.53294088,2959.2,2958.5,0.4936]
[1764010370202,0.002,2959.4,2959.1,0.6406]
[1764010370498,0.002,2959.4,2959.3,0.4583]
[1764010370699,0.53494792,2959.4,2959.3,0.4583]
[1764010371067,0.219,2959.4,2959.3,0.4583]
[1764010371519,0.53494792,2959.4,2959.3,0.4583]
[1764010372089,0.219,2959.4,2959.3,0.9519]
[1764010373322,0.219,2959.4,2959.3,0.4583]
[1764010373685,0.219,2959.4,2959.3,0.9519]
[1764010374285,0.3667,2959.4,2958.9,0.4936]
[1764010374491,0.3667,2959.4,2958.9,3.87322635]
[1764010374773,4.06175274,2959.4,2958.9,0.4936]
[1764010374978,0.31592696,2959.3,2958.9,0.4936]
[1764010375613,0.53492696,2959.4,2958.9,3.87317768]
[1764010375808,0.53492696,2959.4,2959.0,0.4936]
[1764010376009,0.31592696,2959.3,2959.0,0.4936]
[1764010376216,0.002,2959.4,2959.1,0.1823]
[1764010376415,0.002,2959.4,2959.3,0.4583]
[1764010376881,0.002,2959.4,2959.1,0.1823]
[1764010377211,0.002,2959.4,2959.3,0.4583]
[1764010377712,0.002,2959.4,2959.3,0.9519]
[1764010377912,0.002,2959.4,2959.3,4.3310775]
[1764010378090,0.002,2959.4,2959.3,0.4583]
[1764010378986,0.002,2959.4,2959.3,3.8374775]
[1764010379183,0.002,2959.4,2959.3,4.3310775]
[1764010380526,0.002,2959.4,2959.3,0.9519]
[1764010380683,0.002,2959.4,2959.3,4.3310775]
[1764010380888,0.002,2959.4,2959.3,5.12034388]
[1764010381290,0.219,2959.4,2959.1,0.1823]
[1764010381607,0.219,2959.4,2958.9,3.3795535]
[1764010381809,0.219,2959.4,2959.3,0.6406]
[1764010382012,0.219,2959.4,2959.3,1.1342]
[1764010383285,0.219,2959.4,2958.9,0.72559411]
[1764010383485,0.219,2959.4,2959.0,0.4936]
[1764010383695,0.219,2959.4,2959.1,3.3794059]
[1764010383897,0.219,2959.4,2959.1,3.5617059]
[1764010384226,0.219,2959.4,2958.4,0.001]
[1764010384411,0.219,2959.4,2958.6,1.21919411]
[1764010384610,3.91401668,2959.4,2958.6,1.21919411]
[1764010384812,3.59807691,2959.4,2958.6,1.21919411]
[1764010385636,0.1477,2958.7,2958.4,0.001]
[1764010385816,0.217,2958.6,2958.4,0.001]
[1764010386560,0.217,2958.6,2958.5,0.4583]
[1764010388609,0.97747518,2958.6,2958.4,0.001]
[1764010389011,0.57667518,2958.6,2958.4,0.001]
[1764010389238,0.9097938,2959.3,2958.5,0.9519]
[1764010389429,1.26110865,2959.2,2958.7,0.4583]
[1764010389622,0.31603927,2959.1,2958.7,0.9519]
[1764010389934,0.31603927,2959.1,2958.8,3.37974854]
[1764010390123,0.217,2959.2,2958.8,3.87334854]
[1764010390124,0.53303927,2959.2,2958.8,3.87334854]
[1764010390329,0.53303927,2959.2,2959.1,0.4583]
[1764010390639,0.78025261,2959.2,2959.1,0.4583]
[1764010390827,0.53303927,2959.2,2958.9,0.4936]
[1764010391036,0.31605983,2959.1,2958.4,0.4946]
[1764010391336,0.31605983,2959.1,2958.5,7.25378252]
[1764010391936,0.31605983,2959.1,2958.6,0.4936]
[1764010392137,0.217,2959.2,2958.6,0.4936]
[1764010392343,0.31605983,2959.1,2958.6,0.4936]
[1764010392742,0.31605983,2959.1,2959.0,0.4583]
[1764010392939,0.31605983,2959.1,2958.6,0.4936]
[1764010393131,0.217,2959.2,2958.6,0.4936]
[1764010393504,0.53322134,2959.2,2958.6,0.4936]
[1764010393710,0.53322134,2959.2,2958.5,6.76018252]
[1764010393711,0.70746483,2959.1,2958.5,6.76018252]
[1764010393937,0.31622134,2959.0,2958.5,6.76018252]
[1764010394147,0.31622134,2959.0,2958.6,0.4936]
[1764010394451,0.31622134,2958.9,2958.5,3.38009126]
[1764010394746,0.31622134,2958.8,2958.5,3.38009126]
[1764010395045,1.04530336,2959.0,2958.5,3.38009126]
[1764010395248,0.75870223,2958.9,2958.5,3.38009126]
[1764010395419,0.31622134,2958.8,2958.5,3.38009126]
[1764010395625,3.69563191,2959.1,2958.4,3.38115324]
[1764010395941,3.143788,2958.9,2958.4,0.001]
[1764010396146,1.26228543,2958.8,2958.4,0.001]
[1764010396446,0.31622134,2958.7,2958.4,0.001]
[1764010396621,0.31622134,2958.6,2958.4,0.001]
[1764010396944,0.31622134,2958.7,2958.4,0.4755]
[1764010397147,0.31622134,2958.6,2958.4,0.4755]
[1764010397444,0.219,2959.0,2958.9,0.4543]
[1764010397836,0.53522134,2959.0,2958.9,3.83393432]
[1764010398036,0.219,2959.0,2958.9,0.4543]
[1764010398466,0.53522134,2959.0,2958.7,3.85431392]
[1764010398760,0.219,2959.0,2958.9,0.4543]
[1764010399357,0.53545057,2959.0,2958.9,0.4543]
[1764010399561,0.219,2959.0,2958.9,0.4543]
[1764010400161,0.002,2959.0,2958.9,4.32613432]
[1764010402242,0.002,2959.0,2958.9,3.83393432]
[1764010402656,0.002,2959.0,2958.9,0.9465]
[1764010402967,0.002,2959.0,2958.9,4.32613432]
[1764010403261,0.002,2959.0,2958.5,0.4922]
[1764010403467,0.002,2959.0,2958.6,3.37997701]
[1764010403670,0.31645057,2958.9,2958.6,3.37997701]
[1764010403837,0.31645057,2958.9,2958.6,3.87217701]
[1764010404034,0.002,2959.0,2958.6,3.87217701]
[1764010404241,0.002,2959.0,2958.6,6.75995402]
[1764010404242,0.217,2958.9,2958.6,6.75995402]
[1764010404435,0.217,2958.9,2958.7,0.4922]
[1764010404748,0.217,2958.9,2958.6,3.37997701]
[1764010404934,0.53345057,2958.9,2958.6,3.87217701]
[1764010405134,0.53345057,2958.9,2958.6,7.25215402]
[1764010405365,0.217,2958.9,2958.8,0.4526]
[1764010405770,0.217,2958.9,2958.8,0.9448]
[1764010406071,0.217,2958.9,2958.8,4.32454854]
[1764010406270,0.53348781,2958.9,2958.8,4.32454854]
[1764010406438,0.217,2958.9,2958.8,4.32454854]
[1764010406770,0.217,2958.9,2958.8,0.9448]
[1764010406967,0.217,2958.9,2958.8,0.4526]
[1764010407165,0.217,2958.9,2958.7,3.37980347]
[1764010407166,0.3647,2958.9,2958.7,3.37980347]
[1764010407465,0.68118781,2958.9,2958.5,3.38005621]
[1764010407771,0.68118781,2958.9,2958.4,0.001]
[1764010407772,0.004,2958.8,2958.4,3.3811856]
[1764010408068,0.004,2958.8,2958.4,0.001]
[1764010408069,0.4008,2958.5,2958.4,0.001]
[1764010408269,0.71736097,2958.5,2958.4,0.001]
[1764010408455,0.31656097,2958.5,2958.4,0.4536]
[1764010408659,0.1477,2958.5,2958.4,0.001]
[1764010409166,0.46420056,2958.5,2958.4,0.001]
[1764010409967,0.217,2958.5,2958.4,3.83380551]
[1764010410269,0.217,2958.5,2958.4,0.4536]
[1764010410469,0.217,2958.5,2958.4,0.001]
[1764010410966,0.53353116,2958.5,2958.4,0.001]
[1764010411167,4.77609497,2958.5,2958.4,0.001]
[1764010411349,4.31182242,2958.5,2958.4,0.001]
[1764010411550,0.93173116,2958.5,2958.4,0.001]
[1764010411861,0.53353116,2958.5,2958.4,0.001]
[1764010412064,4.30942242,2958.5,2958.4,0.001]
[1764010412262,4.81327873,2958.5,2958.4,0.001]
[1764010412569,4.96597873,2958.5,2958.4,0.001]
[1764010412975,1.43318747,2958.5,2958.4,0.001]
[1764010413163,0.92933116,2958.5,2958.4,0.001]
[1764010413366,4.30942242,2958.5,2958.4,0.001]
[1764010414179,4.31442242,2958.5,2958.4,0.001]
[1764010414583,19.8310305,2958.5,2958.4,0.001]
[1764010414782,21.04387209,2958.5,2958.4,0.001]
[1764010415079,23.11028797,2958.5,2958.4,0.001]
[1764010415255,24.3251583,2958.5,2958.4,0.001]
[1764010415679,34.2144093,2958.5,2958.4,0.001]
[1764010415881,32.99953897,2958.5,2958.4,0.001]
[1764010416041,34.21439531,2958.5,2958.4,0.001]
[1764010416245,32.12467231,2958.5,2958.4,0.001]
[1764010416666,24.25345111,2958.4,2958.3,0.001]
[1764010416880,28.37361148,2958.4,2958.3,0.001]
[1764010417079,27.88462448,2958.4,2958.3,0.001]
[1764010417279,29.00112197,2958.4,2958.3,0.001]
[1764010417578,6.35901093,2958.4,2958.3,0.001]
[1764010417875,4.49722182,2958.4,2958.3,0.001]
[1764010418078,1.04513709,2958.4,2958.3,0.001]
[1764010418268,0.53294412,2958.4,2958.3,0.001]
[1764010418674,0.217,2958.4,2958.3,0.001]
[1764010418849,0.53294412,2958.4,2958.3,0.001]
[1764010419177,4.06084963,2958.4,2958.3,0.001]
[1764010419377,5.20314431,2958.4,2958.3,0.001]
[1764010419551,8.12855547,2958.4,2958.3,0.001]
[1764010419951,5.5324442,2958.4,2958.3,0.001]
[1764010420183,5.9306442,2958.4,2958.3,0.001]
[1764010422939,2.00453869,2958.4,2958.3,0.4536]
[1764010423080,0.53281285,2958.4,2958.3,0.001]
[1764010423286,3.91301836,2958.4,2958.3,0.001]
[1764010423580,0.53281285,2958.4,2958.3,0.001]
[1764010423799,4.78811243,2958.4,2958.3,0.001]
[1764010425024,4.64041243,2958.4,2958.3,0.001]
[1764010425228,0.53281285,2958.4,2958.3,0.4536]
[1764010425430,0.217,2958.4,2958.3,0.4536]
[1764010425628,0.53281285,2958.4,2958.3,0.4536]
[1764010425917,0.53281285,2958.4,2958.3,0.9458]
[1764010426238,0.31581285,2958.4,2958.3,0.9458]
[1764010426393,0.217,2958.7,2958.3,0.9458]
[1764010426588,0.217,2958.7,2958.4,0.4922]
[1764010426819,0.217,2958.7,2958.6,0.4526]
[1764010426988,3.59686277,2958.7,2958.4,0.4922]
[1764010427188,0.31560249,2958.6,2958.3,0.001]
[1764010427505,0.31560249,2958.6,2958.3,0.4932]
[1764010428013,0.31560249,2958.6,2958.3,0.001]
[1764010429100,0.31560249,2958.6,2958.5,0.463]
[1764010429317,0.2085512,2958.7,2958.6,0.463]
[1764010429806,0.31571434,2958.8,2958.6,0.463]
[1764010430117,0.217,2958.7,2958.6,0.4509]
[1764010430500,0.217,2958.7,2958.6,0.9386]
[1764010430697,0.002,2959.0,2958.6,0.9386]
[1764010430908,0.002,2959.0,2958.9,0.4877]
[1764010431421,0.002,2959.0,2958.9,1.70843255]
[1764010433025,0.002,2959.0,2958.9,5.08806687]
[1764010436034,0.002,2959.0,2958.9,0.4877]
[1764010436334,0.002,2959.0,2958.9,4.31823432]
[1764010441227,0.002,2959.0,2958.6,0.4509]
[1764010441548,5.35202446,2958.9,2958.3,0.001]
[1764010441703,0.002,2959.0,2958.3,0.4519]
[1764010441907,0.59718245,2958.9,2958.3,0.4519]
[1764010442338,0.59718245,2958.9,2958.3,3.83221385]
[1764010443157,0.59718245,2958.9,2958.4,0.4509]
[1764010443456,0.002,2959.0,2958.8,0.4877]
[1764010443658,0.002,2959.0,2958.9,0.4877]
[1764010443860,0.002,2959.0,2958.9,5.04382843]
[1764010451169,0.002,2959.2,2959.0,0.72559411]
[1764010451366,0.002,2959.2,2959.1,1.52762591]
[1764010451552,0.002,2959.2,2959.1,1.97852591]
[1764010452168,0.002,2959.2,2958.8,3.37972411]
[1764010452366,0.1497,2959.2,2958.8,3.37972411]
[1764010452566,0.002,2959.2,2958.9,0.4509]
[1764010452864,0.002,2959.2,2958.7,6.75968107]
[1764010453242,0.002,2959.2,2958.7,3.3798183]
[1764010453445,0.33831892,2959.1,2958.6,3.38092186]
[1764010453849,0.002,2959.2,2959.0,0.4877]
[1764010454045,0.002,2959.2,2959.1,0.6819]
[1764010454574,0.002,2959.2,2959.1,5.23780001]
[1764010456243,0.002,2959.2,2959.1,5.45480001]
[1764010456442,0.002,2959.2,2959.1,5.23780001]
[1764010456779,0.002,2959.2,2959.1,6.31653143]
[1764010458871,0.002,2959.2,2959.1,6.09953143]
[1764010459170,0.002,2959.2,2959.1,6.31653143]
[1764010460671,0.002,2959.2,2959.1,5.14003732]
[1764010460876,0.002,2959.2,2959.1,4.2783059]
[1764010461064,0.002,2959.2,2959.1,3.8671059]
[1764010461572,0.002,2959.2,2959.1,3.3794059]
[1764010462478,0.002,2959.2,2959.1,4.4885059]
[1764010462841,0.002,2959.2,2959.1,5.21410001]
[1764010463041,0.002,2959.2,2959.1,6.12895548]
[1764010463241,0.002,2959.2,2959.1,6.09516143]
[1764010465044,0.002,2959.2,2958.7,6.75972554]
[1764010465244,0.1497,2959.2,2958.8,0.72559411]
[1764010465966,0.1497,2959.2,2958.7,3.37986277]
[1764010465967,0.004,2958.9,2958.7,3.37986277]
[1764010466295,0.4002,2959.2,2958.7,6.75972554]
[1764010466581,0.4002,2959.2,2959.0,0.001]
[1764010466776,3.77950245,2959.2,2959.0,0.001]
[1764010466942,0.84454926,2959.1,2959.0,0.001]
[1764010467147,1.24034926,2959.1,2959.0,0.001]
[1764010467802,0.84453614,2959.1,2959.0,0.001]
[1764010468083,0.4663859,2959.1,2959.0,0.001]
[1764010468273,0.1503,2959.1,2959.0,0.001]
[1764010469259,0.002,2959.2,2959.0,0.001]
[1764010470902,0.1477,2959.1,2959.0,0.001]
[1764010471703,0.002,2959.2,2959.0,0.001]
[1764010471872,0.1477,2959.1,2959.0,0.001]
[1764010472070,0.002,2959.2,2959.0,0.001]
[1764010472804,0.1477,2959.1,2959.0,0.001]
[1764010473058,0.002,2959.2,2959.0,0.001]
[1764010474933,0.1477,2959.1,2959.0,0.001]
[1764010475137,0.46374217,2959.1,2959.0,0.001]
[1764010475442,0.1477,2959.1,2959.0,0.001]
[1764010475962,0.46384954,2959.1,2959.0,0.001]
[1764010476540,0.86204954,2959.1,2959.0,0.001]